bitfinex/quotes_SOLUSD_20220228
["timestamp","ask_amount","ask_price","bid_price","bid_amount"]
[1646055113478,2.74678921,90.055,89.959,109.3]
[1646055113681,2.74678921,90.055,89.958,47.07383742]
[1646055114280,47.58584702,90.054,89.949,109.3]
[1646055114480,1.62105536,90.053,89.945,109.3]
[1646055114679,13.37,90.05,89.945,109.3]
[1646055114880,1.7362927,90.049,89.945,109.3]
[1646055115080,4.31519511,90.049,89.945,108.8]
[1646055115280,4.31519511,90.049,89.947,108.8]
[1646055115482,1.7362927,90.049,89.957,108.8]
[1646055115680,1.61619976,90.057,89.957,108.8]
[1646055116582,1.61619976,90.057,89.951,108.8]
[1646055116780,2.57890241,90.056,89.951,108.8]
[1646055117279,2.57890241,90.056,89.977,108.8]
[1646055117480,2.74678921,90.068,89.987,108.8]
[1646055117679,1.78787153,90.08,89.987,108.8]
[1646055117880,2.74678921,90.087,89.989,108.8]
[1646055118080,2.57890241,90.079,89.988,48.7022]
[1646055118683,2.57890241,90.079,89.989,109.3]
[1646055118881,1.63941264,90.097,89.989,109.3]
[1646055119082,2.74678921,90.096,89.989,109.3]
[1646055119380,2.74678921,90.095,89.989,109.3]
[1646055123693,26.47907842,90.095,89.989,109.3]
[1646055123890,1.46557551,90.094,89.989,109.3]
[1646055124089,4.21236472,90.094,89.989,109.3]
[1646055124290,1.73799872,90.093,89.988,48.7022]
[1646055124590,66.9782193,90.092,89.931,2.8697467]
[1646055124790,13.37,90.08,89.93,13.37]
[1646055124992,29.94181203,90.079,89.93,13.37]
[1646055125194,1.85934984,90.078,89.93,13.37]
[1646055125393,112.6,90.063,89.936,65.58]
[1646055125591,13.37,90.06,89.941,109.3]
[1646055125791,1.82899424,90.059,89.948,65.58]
[1646055125993,1.82899424,90.059,89.961,109.3]
[1646055126294,1.36090046,90.098,89.981,109.3]
[1646055126491,1.36090046,90.098,89.997,109.3]
[1646055126692,1.36090046,90.098,90.001,109.3]
[1646055127311,1.36090046,90.098,90.005,109.3]
[1646055127511,1.36090046,90.098,90.007,109.3]
[1646055127911,2.74678921,90.097,90.007,109.3]
[1646055128515,1.36090046,90.098,90.007,109.3]
[1646055129912,1.36090046,90.098,90.011,109.3]
[1646055131314,2.74678921,90.097,90.01,13.37]
[1646055131716,2.74678921,90.097,89.99,13.37]
[1646055131916,22.72515781,90.096,89.98,13.37]
[1646055132115,1.78259783,90.095,89.966,2.74678921]
[1646055132316,24.90822037,90.095,89.971,109.3]
[1646055132515,24.52471109,90.094,89.971,109.3]
[1646055132717,24.52471109,90.094,89.976,65.58]
[1646055132718,16.01,90.09,89.976,65.58]
[1646055132918,1.5948668,90.089,89.981,109.3]
[1646055133318,23.5313,90.088,89.981,109.3]
[1646055133518,1.50086712,90.087,89.981,109.3]
[1646055133917,4.24765633,90.087,89.981,109.3]
[1646055134121,2.57890241,90.086,89.981,109.3]
[1646055134517,1.70381333,90.084,89.981,109.3]
[1646055135018,2.74678921,90.083,89.98,16.01]
[1646055135627,112.6,90.069,89.981,5.17952965]
[1646055135819,1.65863768,90.104,89.981,5.17952965]
[1646055136020,1.65863768,90.104,89.984,109.3]
[1646055136227,1.65863768,90.104,89.982,2.74678921]
[1646055136420,2.57890241,90.103,89.982,2.74678921]
[1646055136622,2.57890241,90.103,89.986,59.92069397]
[1646055136821,2.57890241,90.103,89.99,16.01]
[1646055137020,2.57890241,90.103,89.991,109.3]
[1646055137320,2.57890241,90.103,89.986,59.92069397]
[1646055137321,16.01,90.1,89.986,59.92069397]
[1646055137521,1.75986513,90.099,89.986,59.92069397]
[1646055137823,1.5078286,90.098,89.986,59.92069397]
[1646055138021,112.6,90.072,89.931,65.58]
[1646055138222,47.65297667,90.071,89.951,109.3]
[1646055138422,1.62690184,90.07,89.951,109.3]
[1646055138721,4.20580425,90.07,89.951,109.3]
[1646055139020,2.74678921,90.069,89.973,52.26656777]
[1646055139223,4.59817362,90.069,89.973,52.26656777]
[1646055139424,26.18305455,90.068,89.973,52.26656777]
[1646055139623,1.70444145,90.067,89.973,52.26656777]
[1646055139823,26.10176857,90.067,89.95,16.01]
[1646055140022,27.68706691,90.066,89.945,109.3]
[1646055140222,6.1860723,90.065,89.945,109.3]
[1646055140422,16.01,90.05,89.945,109.3]
[1646055140624,1.37804764,90.048,89.945,109.3]
[1646055140823,1.37804764,90.048,89.947,109.3]
[1646055141225,2.74678921,90.047,89.947,109.3]
[1646055143028,2.74678921,90.047,89.946,50.41198002]
[1646055143228,50.58038167,90.046,89.944,22.8189]
[1646055143427,1.56817595,90.045,89.916,11.61298036]
[1646055143628,117.72855762,90.045,89.911,48.1536]
[1646055143828,65.58,90.043,89.911,48.1536]
[1646055144030,78.92,90.03,89.911,48.1536]
[1646055144231,53.72349486,90.029,89.912,53.32879793]
[1646055144429,1.51394376,90.028,89.912,53.32879793]
[1646055144728,52.09432543,90.028,89.911,48.1536]
[1646055144927,4.58926129,90.027,89.911,48.1536]
[1646055145128,6.21739118,90.026,89.911,48.1536]
[1646055145328,67.22870882,90.025,89.87,13.34]
[1646055145527,65.58,90.023,89.87,13.34]
[1646055145727,65.58,90.009,89.871,51.08591284]
[1646055145930,1.41719607,90.006,89.871,51.08591284]
[1646055146129,4.447,90.005,89.871,51.08591284]
[1646055146328,13.34,89.99,89.871,51.08591284]
[1646055146528,1.69150094,89.988,89.871,51.08591284]
[1646055147129,1.83849413,89.987,89.872,24.175]
[1646055147928,109.3,89.986,89.872,24.175]
[1646055148131,1.37239223,89.985,89.873,109.3]
[1646055148329,1.37239223,89.985,89.877,109.3]
[1646055148527,1.37239223,89.985,89.872,24.175]
[1646055149130,1.37239223,89.985,89.873,109.3]
[1646055150131,26.18305455,89.984,89.873,109.3]
[1646055150337,1.64565932,89.983,89.874,2.60055834]
[1646055150535,1.87319756,90.006,89.874,2.60055834]
[1646055150731,1.87319756,90.006,89.883,109.3]
[1646055150934,1.87319756,90.006,89.891,174.88]
[1646055151136,1.77003856,90.012,89.897,109.3]
[1646055151332,1.77003856,90.012,89.896,65.58]
[1646055151333,1.77003856,90.012,89.899,109.3]
[1646055151933,26.18305455,90.011,89.899,109.3]
[1646055152131,1.48289476,90.01,89.901,109.3]
[1646055152532,26.18305455,90.009,89.901,109.3]
[1646055152733,1.78554676,90.008,89.901,109.3]
[1646055153134,1.39162391,90.006,89.901,109.3]
[1646055153335,1.39162391,90.006,89.906,65.58]
[1646055153535,1.78742764,90.012,89.915,109.3]
[1646055153735,1.78742764,90.012,89.931,52.5423547]
[1646055153937,27.97048219,90.012,89.92,13.34]
[1646055154134,26.18305455,90.012,89.91,22.6866]
[1646055154335,135.27527173,90.011,89.91,22.6866]
[1646055154538,1.39332204,90.01,89.91,22.6866]
[1646055154735,1.55751392,90.008,89.91,22.6866]
[1646055155235,109.3,90.006,89.895,57.93727056]
[1646055155436,1.62436834,90.005,89.895,57.93727056]
[1646055155636,109.3,89.999,89.895,57.93727056]
[1646055155837,109.3,89.999,89.87,13.34]
[1646055155838,132.9101,89.999,89.872,109.3]
[1646055156038,28.04437817,89.998,89.871,23.5177]
[1646055156236,1.50304381,89.996,89.871,23.5177]
[1646055156837,109.3,89.994,89.871,23.5177]
[1646055157038,109.3,89.989,89.883,55.59302611]
[1646055157236,1.58248889,89.988,89.883,55.59302611]
[1646055157636,109.3,89.987,89.883,55.59302611]
[1646055157837,1.71895286,89.986,89.883,55.59302611]
[1646055158438,1.71895286,89.986,89.885,47.6497]
[1646055158838,1.71895286,89.986,89.886,109.3]
[1646055159547,1.71895286,89.986,89.885,47.6497]
[1646055159942,2.74678921,89.985,89.886,109.3]
[1646055161042,109.3,89.983,89.885,47.6497]
[1646055161244,1.65186052,89.982,89.885,47.6497]
[1646055161444,109.3,89.981,89.885,24.9879]
[1646055161642,1.3523242,89.98,89.885,24.9879]
[1646055162048,1.4422964,89.979,89.885,24.9879]
[1646055162245,109.3,89.978,89.885,24.9879]
[1646055162444,1.36233823,89.977,89.883,55.59302611]
[1646055162644,1.36233823,89.977,89.85,13.34]
[1646055162645,3.94124064,89.977,89.85,13.34]
[1646055162846,183.19592712,89.976,89.849,49.2578]
[1646055163046,1.79084062,89.975,89.856,11.62220017]
[1646055163246,109.3,89.969,89.849,49.2578]
[1646055163448,1.75030843,89.968,89.849,49.2578]
[1646055163648,1.75030843,89.968,89.85,58.73433791]
[1646055163845,109.3,89.966,89.851,109.3]
[1646055164046,1.69037135,89.965,89.851,109.3]
[1646055164246,109.3,89.964,89.851,109.3]
[1646055164446,1.77660938,89.963,89.851,109.3]
[1646055164649,109.3,89.962,89.851,109.3]
[1646055164847,1.7176774,89.961,89.851,109.3]
[1646055165246,4.29657981,89.961,89.851,109.3]
[1646055165447,1.7176774,89.961,89.851,109.3]
[1646055165648,2.74678921,89.96,89.851,109.3]
[1646055166951,2.74678921,89.96,89.855,109.3]
[1646055167152,2.74678921,89.96,89.857,109.3]
[1646055167349,2.74678921,89.96,89.858,65.58]
[1646055167552,23.0674,89.963,89.864,65.58]
[1646055167749,23.0674,89.963,89.873,109.3]
[1646055167950,2.57890241,89.974,89.877,109.3]
[1646055168152,2.57890241,89.974,89.881,109.3]
[1646055168360,2.57890241,89.974,89.883,109.3]
[1646055168751,2.57890241,89.974,89.885,109.3]
[1646055169152,2.57890241,89.974,89.884,24.0604]
[1646055170360,26.18305455,89.973,89.884,24.0604]
[1646055170558,1.61435946,89.972,89.884,24.0604]
[1646055170757,113.66114867,89.972,89.884,24.0604]
[1646055170960,1.78105697,89.971,89.884,24.0604]
[1646055171160,4.35995938,89.971,89.884,24.0604]
[1646055171361,1.43939206,89.969,89.884,24.0604]
[1646055171761,2.57890241,89.968,89.884,24.0604]
[1646055171962,111.87890241,89.968,89.884,24.0604]
[1646055172162,109.3,89.966,89.884,24.0604]
[1646055172363,1.50923599,89.965,89.884,24.0604]
[1646055172762,4.2560252,89.965,89.884,24.0604]
[1646055172962,1.50923599,89.965,89.884,24.0604]
[1646055173163,2.74678921,89.964,89.885,54.44055548]
[1646055174366,2.74678921,89.964,89.886,109.3]
[1646055176177,1.52059022,89.973,89.886,109.3]
[1646055176578,2.74678921,89.972,89.886,109.3]
[1646055177378,2.74678921,89.972,89.891,109.3]
[1646055182982,2.74678921,89.972,89.892,65.58]
[1646055183180,1.48970372,89.995,89.895,109.3]
[1646055183381,2.57890241,89.988,89.897,109.3]
[1646055183781,2.57890241,89.988,89.896,24.255]
[1646055183782,2.57890241,89.988,89.902,52.17440709]
[1646055183984,2.57890241,89.988,89.903,109.3]
[1646055184282,1.57972688,89.992,89.903,109.3]
[1646055184481,1.66863057,89.992,89.903,109.3]
[1646055184681,49.7738,90.0,89.903,109.3]
[1646055184882,1.4126503,89.999,89.903,109.3]
[1646055185883,1.4126503,89.999,89.904,2.74678921]
[1646055186084,1.4126503,89.999,89.91,65.58]
[1646055186284,2.74678921,90.005,89.919,109.3]
[1646055188489,2.57890241,89.992,89.913,23.7551]
[1646055188689,139.86170797,89.992,89.913,23.7551]
[1646055188888,1.81079828,89.991,89.913,23.7551]
[1646055189092,109.3,89.99,89.913,23.7551]
[1646055189287,1.78013869,89.989,89.913,23.7551]
[1646055189691,57.42078719,89.989,89.913,23.7551]
[1646055189990,54.52184118,89.988,89.913,23.7551]
[1646055190191,1.45767995,89.987,89.913,23.7551]
[1646055190394,57.09832845,89.987,89.913,23.7551]
[1646055190594,28.21136577,89.986,89.913,23.7551]
[1646055190793,1.74093715,89.985,89.913,23.7551]
[1646055191195,2.57890241,89.984,89.913,23.7551]
[1646055193005,28.76126362,89.984,89.913,23.7551]
[1646055193196,137.54235651,89.983,89.913,23.7551]
[1646055193495,13.34,89.98,89.878,22.8246]
[1646055193695,1.3752732,89.979,89.879,22.6186]
[1646055193896,1.78505613,89.978,89.88,51.19796855]
[1646055194097,27.96741734,89.978,89.88,51.19796855]
[1646055194396,27.80373999,89.977,89.88,51.19796855]
[1646055194598,110.8756701,89.976,89.88,51.19796855]
[1646055194798,1.79348798,89.975,89.88,51.19796855]
[1646055195000,109.3,89.974,89.88,51.19796855]
[1646055195297,1.43680266,89.973,89.88,51.19796855]
[1646055195699,2.74678921,89.972,89.88,51.19796855]
[1646055199203,1.54845562,89.97,89.88,51.19796855]
[1646055199404,1.54845562,89.97,89.879,22.6186]
[1646055199603,1.54845562,89.97,89.848,23.3513]
[1646055199604,169.2205017,89.969,89.848,23.3513]
[1646055199803,1.60418774,89.968,89.849,49.0139]
[1646055200004,109.3,89.967,89.849,49.0139]
[1646055200205,1.8564854,89.966,89.849,49.0139]
[1646055200406,109.3,89.965,89.85,57.25091855]
[1646055200609,1.60869237,89.964,89.85,57.25091855]
[1646055200805,109.3,89.963,89.85,57.25091855]
[1646055201003,1.60365716,89.958,89.85,57.25091855]
[1646055201204,13.34,89.96,89.829,5.81077105]
[1646055201205,109.3,89.947,89.829,5.81077105]
[1646055201403,109.3,89.937,89.829,5.81077105]
[1646055201603,174.88,89.929,89.796,11.62705899]
[1646055201803,109.3,89.919,89.787,47.611]
[1646055202024,13.34,89.91,89.787,47.611]
[1646055202203,1.83744812,89.908,89.788,48.26360926]
[1646055202503,4.45,89.907,89.788,48.26360926]
[1646055202704,109.3,89.906,89.788,48.26360926]
[1646055202903,1.42915836,89.905,89.788,48.26360926]
[1646055203103,109.3,89.9,89.788,48.26360926]
[1646055203304,109.3,89.889,89.756,11.63324658]
[1646055203503,1.48818652,89.888,89.752,51.0465]
[1646055203703,1.59289418,89.886,89.752,46.5945]
[1646055203902,4.453,89.885,89.752,46.5945]
[1646055204102,37.03275008,89.885,89.753,11.57865434]
[1646055204303,1.76297939,89.883,89.754,58.82489501]
[1646055204603,109.3,89.869,89.754,58.82489501]
[1646055204804,1.82231521,89.868,89.754,58.82489501]
[1646055205004,37.1488545,89.868,89.754,58.82489501]
[1646055205204,1.72395007,89.866,89.754,58.82489501]
[1646055205807,111.1029401,89.864,89.754,58.82489501]
[1646055206005,109.3,89.859,89.754,58.82489501]
[1646055206207,1.59083041,89.858,89.754,58.82489501]
[1646055206806,109.3,89.856,89.754,58.82489501]
[1646055207109,1.59721343,89.855,89.754,58.82489501]
[1646055207307,4.34400264,89.855,89.756,65.58]
[1646055207607,1.71478482,89.869,89.757,113.754]
[1646055207811,1.71478482,89.869,89.757,116.50078921]
[1646055208107,2.74678921,89.868,89.777,109.3]
[1646055208310,2.74678921,89.868,89.778,136.4626]
[1646055209208,2.74678921,89.868,89.781,109.3]
[1646055209408,2.57890241,89.894,89.783,109.3]
[1646055209627,2.57890241,89.894,89.792,65.58]
[1646055209828,2.57890241,89.894,89.797,109.3]
[1646055210027,1.8253165,89.899,89.803,109.3]
[1646055210228,1.8253165,89.899,89.807,109.3]
[1646055210428,1.8253165,89.899,89.811,109.3]
[1646055210629,2.74678921,89.907,89.811,109.3]
[1646055211029,28.04772255,89.906,89.811,109.3]
[1646055211231,1.65332841,89.905,89.811,109.3]
[1646055211430,4.23223082,89.905,89.811,109.3]
[1646055211630,2.74678921,89.904,89.811,109.3]
[1646055211829,4.34249369,89.904,89.811,109.3]
[1646055212232,1.45867414,89.902,89.811,109.3]
[1646055212432,1.45867414,89.902,89.799,109.3]
[1646055212629,1.59650559,89.9,89.799,109.3]
[1646055212830,1.78887501,89.899,89.798,23.1029]
[1646055213029,1.45285285,89.898,89.798,23.1029]
[1646055213229,31.00010498,89.898,89.798,23.1029]
[1646055213431,1.46988141,89.897,89.798,23.1029]
[1646055213629,1.44224012,89.896,89.799,4.45]
[1646055213830,1.64855631,89.895,89.798,23.1029]
[1646055214229,61.8224334,89.895,89.798,23.1029]
[1646055214429,140.53437678,89.894,89.798,23.1029]
[1646055214629,1.79858208,89.893,89.798,23.1029]
[1646055214831,109.3,89.892,89.798,23.1029]
[1646055215029,1.49735787,89.891,89.798,23.1029]
[1646055215531,153.39772255,89.89,89.798,23.1029]
[1646055215729,153.39772255,89.89,89.782,24.034]
[1646055215730,1.38665632,89.889,89.782,24.034]
[1646055215932,109.3,89.888,89.761,23.0249]
[1646055216131,1.59174612,89.887,89.761,23.0249]
[1646055216330,109.3,89.886,89.761,23.0249]
[1646055216529,109.3,89.884,89.762,50.07856398]
[1646055216729,109.3,89.869,89.762,50.07856398]
[1646055216933,109.3,89.859,89.762,50.07856398]
[1646055217129,125.35,89.85,89.762,50.07856398]
[1646055217430,1.49499482,89.849,89.762,50.07856398]
[1646055217632,4.07389723,89.849,89.762,50.07856398]
[1646055218830,2.74678921,89.848,89.762,50.07856398]
[1646055219633,29.54725213,89.847,89.762,50.07856398]
[1646055219934,110.96809313,89.846,89.762,50.07856398]
[1646055220136,1.80374124,89.845,89.762,50.07856398]
[1646055220734,2.74678921,89.844,89.762,50.07856398]
[1646055222535,29.54725213,89.843,89.762,50.07856398]
[1646055222736,1.767745,89.842,89.762,50.07856398]
[1646055223138,113.81453421,89.842,89.762,50.07856398]
[1646055223336,1.41132532,89.841,89.762,50.07856398]
[1646055223738,4.15811453,89.841,89.762,50.07856398]
[1646055223937,29.54725213,89.84,89.762,50.07856398]
[1646055224139,1.48584694,89.839,89.762,50.07856398]
[1646055224440,1.48584694,89.839,89.741,11.63712336]
[1646055224638,13.37,89.83,89.699,47.5879]
[1646055224844,67.13400126,89.829,89.661,11.64151142]
[1646055225040,1.57743563,89.828,89.667,11.63965538]
[1646055225237,1.57743563,89.828,89.662,4.456]
[1646055225238,4.456,89.827,89.662,4.456]
[1646055225438,65.58,89.823,89.668,46.55556135]
[1646055225738,174.88,89.809,89.668,46.55556135]
[1646055225937,109.3,89.799,89.668,46.55556135]
[1646055226140,109.3,89.789,89.668,46.55556135]
[1646055226340,109.3,89.779,89.645,72.7245]
[1646055226539,109.3,89.769,89.625,4.457]
[1646055226739,109.3,89.759,89.625,4.457]
[1646055226939,1.7781271,89.758,89.625,4.457]
[1646055227140,109.3,89.757,89.625,4.457]
[1646055227339,1.51595891,89.756,89.626,55.7441026]
[1646055227739,109.3,89.754,89.626,55.7441026]
[1646055227940,109.3,89.749,89.626,55.7441026]
[1646055228141,1.42735423,89.748,89.626,55.7441026]
[1646055228541,109.3,89.747,89.626,55.7441026]
[1646055228740,1.86333304,89.746,89.626,55.7441026]
[1646055228945,65.11363915,89.746,89.626,55.7441026]
[1646055229140,110.76921302,89.745,89.626,55.7441026]
[1646055229340,1.47502864,89.744,89.626,55.7441026]
[1646055229543,109.3,89.739,89.626,55.7441026]
[1646055229740,1.65814523,89.738,89.626,55.7441026]
[1646055230141,1.77408106,89.736,89.626,55.7441026]
[1646055230542,109.3,89.734,89.626,55.7441026]
[1646055230741,13.37,89.73,89.626,55.7441026]
[1646055231040,1.48376918,89.729,89.626,55.7441026]
[1646055231241,64.73407529,89.729,89.626,55.7441026]
[1646055231446,1.37814185,89.728,89.626,55.7441026]
[1646055231644,110.67814185,89.728,89.626,55.7441026]
[1646055231942,1.87294558,89.727,89.627,109.3]
[1646055232140,4.61973479,89.727,89.626,55.7441026]
[1646055232741,4.61973479,89.727,89.627,109.3]
[1646055233141,1.87294558,89.727,89.628,3.09704702]
[1646055233543,1.44893236,89.726,89.633,109.3]
[1646055233743,2.74678921,89.748,89.642,65.58]
[1646055233950,2.74678921,89.748,89.653,109.3]
[1646055234145,1.82172696,89.767,89.657,109.3]
[1646055234345,1.84832334,89.745,89.655,109.3]
[1646055234743,111.14832334,89.745,89.654,57.78252622]
[1646055234943,4.57066648,89.744,89.654,57.78252622]
[1646055235343,2.74678921,89.743,89.654,57.78252622]
[1646055235544,1.82387727,89.744,89.654,57.78252622]
[1646055235945,1.82387727,89.744,89.655,109.3]
[1646055236345,1.82387727,89.744,89.654,57.78252622]
[1646055236547,28.45714802,89.743,89.654,57.78252622]
[1646055236744,1.77542486,89.742,89.654,57.78252622]
[1646055237146,2.74678921,89.741,89.654,57.78252622]
[1646055237347,4.31057673,89.741,89.654,57.78252622]
[1646055237747,2.74678921,89.74,89.654,57.78252622]
[1646055238847,140.50393723,89.74,89.654,57.78252622]
[1646055239053,1.36287458,89.739,89.654,57.78252622]
[1646055239451,54.77690611,89.738,89.654,57.78252622]
[1646055239651,1.40897888,89.737,89.654,57.78252622]
[1646055239851,28.45714802,89.737,89.654,57.78252622]
[1646055240051,33.0730219,89.736,89.654,57.78252622]
[1646055240252,111.03901094,89.735,89.63,23.2008]
[1646055240453,1.83152462,89.734,89.63,23.2008]
[1646055240652,1.4539918,89.728,89.63,23.2008]
[1646055241054,1.4539918,89.728,89.61,23.3535]
[1646055241255,1.38232384,89.725,89.626,57.27449425]
[1646055241458,4.46,89.724,89.626,57.27449425]
[1646055241659,1.4718449,89.708,89.61,23.3535]
[1646055242056,4.46,89.707,89.61,23.3535]
[1646055242257,1.82856098,89.705,89.61,23.3535]
[1646055242457,109.3,89.689,89.61,23.3535]
[1646055242659,1.38152529,89.688,89.611,55.34002707]
[1646055242959,4.1283145,89.688,89.611,55.34002707]
[1646055243361,1.38152529,89.688,89.611,55.34002707]
[1646055243560,2.57890241,89.687,89.611,55.34002707]
[1646055244559,2.74678921,89.699,89.612,109.3]
[1646055244760,26.31975809,89.717,89.612,109.3]
[1646055244761,13.37,89.71,89.612,109.3]
[1646055244961,1.77303251,89.709,89.613,65.58]
[1646055245163,1.74116416,89.716,89.616,174.88]
[1646055245461,1.50878211,89.728,89.62,13.37]
[1646055245660,110.80878211,89.728,89.612,48.364]
[1646055245861,4.43242353,89.727,89.612,51.15519999]
[1646055246260,30.83551046,89.726,89.612,51.15519999]
[1646055246460,1.41083163,89.725,89.613,68.02229199]
[1646055246662,1.41083163,89.725,89.616,83.3]
[1646055246860,4.15762084,89.725,89.616,83.3]
[1646055247060,2.74678921,89.724,89.617,2.9794447]
[1646055247661,31.20393723,89.724,89.617,2.9794447]
[1646055248061,4.47147823,89.723,89.617,2.9794447]
[1646055248462,109.3,89.721,89.616,83.3]
[1646055248663,1.70903487,89.72,89.616,83.3]
[1646055248862,32.9129721,89.72,89.616,83.3]
[1646055249064,30.10566561,89.719,89.616,83.3]
[1646055249264,1.76693367,89.718,89.616,83.3]
[1646055249664,59.12274219,89.718,89.611,55.34002707]
[1646055249865,13.37,89.71,89.611,55.34002707]
[1646055250068,4.99490115,89.709,89.611,45.34002707]
[1646055250264,59.77180726,89.709,89.611,45.34002707]
[1646055250465,137.45148576,89.708,89.611,45.34002707]
[1646055250667,1.45833682,89.707,89.611,45.34002707]
[1646055250965,109.3,89.706,89.611,45.34002707]
[1646055251166,1.46144054,89.705,89.611,45.34002707]
[1646055251364,122.67,89.69,89.611,45.34002707]
[1646055251566,2.97858828,89.689,89.611,45.34002707]
[1646055251766,109.3,89.688,89.611,45.34002707]
[1646055251964,1.54853643,89.687,89.579,46.9393]
[1646055252166,4.29532564,89.687,89.579,46.9393]
[1646055252365,109.3,89.686,89.579,46.9393]
[1646055252565,1.75302939,89.685,89.579,46.9393]
[1646055252967,111.87890241,89.684,89.58,59.48357699]
[1646055253166,109.3,89.669,89.58,59.48357699]
[1646055253369,5.19316913,89.668,89.58,59.48357699]
[1646055253566,109.3,89.667,89.58,59.48357699]
[1646055253767,1.35546344,89.666,89.541,45.8167]
[1646055254070,109.3,89.647,89.503,29.15431369]
[1646055254270,109.3,89.633,89.496,49.6749]
[1646055254467,109.3,89.619,89.496,49.6749]
[1646055254668,122.67,89.61,89.497,49.27418628]
[1646055254967,4.79337293,89.609,89.498,109.3]
[1646055255367,2.57890241,89.608,89.498,109.3]
[1646055255568,2.57890241,89.608,89.497,47.00450169]
[1646055256368,135.1031775,89.607,89.496,49.6749]
[1646055256571,1.73176742,89.606,89.496,49.6749]
[1646055256770,111.03795821,89.605,89.496,49.6749]
[1646055256971,1.45192312,89.604,89.496,49.6749]
[1646055257170,109.3,89.589,89.496,49.6749]
[1646055257369,3.0215455,89.588,89.47,4.467]
[1646055257669,3.0215455,89.588,89.451,77.2801]
[1646055257871,4.50882906,89.588,89.471,109.3]
[1646055258169,4.50882906,89.588,89.472,6.97104054]
[1646055258374,2.50697746,89.587,89.474,109.3]
[1646055258568,2.50697746,89.587,89.475,2.90249244]
[1646055258767,2.57890241,89.586,89.475,2.90249244]
[1646055258968,2.57890241,89.586,89.476,174.88]
[1646055259168,2.57890241,89.586,89.479,2.55167714]
[1646055259372,2.57890241,89.586,89.48,3.05223912]
[1646055260177,2.57890241,89.586,89.484,65.58]
[1646055260377,2.74678921,89.598,89.489,111.63498456]
[1646055260577,13.37,89.62,89.495,109.3]
[1646055260779,2.74678921,89.615,89.501,109.3]
[1646055260976,2.74678921,89.615,89.507,109.3]
[1646055261177,2.68713652,89.614,89.508,2.40879175]
[1646055261879,2.68713652,89.614,89.508,1.90879175]
[1646055261880,1.61090894,89.611,89.508,1.90879175]
[1646055262178,1.61090894,89.611,89.502,60.52984334]
[1646055262377,137.61110498,89.61,89.503,109.3]
[1646055262576,1.75557889,89.609,89.504,2.68862458]
[1646055262776,1.5847768,89.608,89.504,2.68862458]
[1646055262978,28.14321818,89.609,89.51,65.58]
[1646055263179,2.74678921,89.608,89.521,109.3]
[1646055263377,2.68713652,89.614,89.521,109.3]
[1646055263378,2.68713652,89.614,89.522,2.36128224]
[1646055264278,1.41444526,89.63,89.522,2.36128224]
[1646055264679,25.56431577,89.629,89.523,4.465]
[1646055264879,28.31110498,89.629,89.537,109.3]
[1646055265079,2.57890241,89.643,89.538,2.74840741]
[1646055265282,3.17976147,89.642,89.54,109.3]
[1646055265482,3.17976147,89.642,89.541,2.52976121]
[1646055265682,2.74678921,89.641,89.541,2.52976121]
[1646055266497,1.47787637,89.64,89.541,2.52976121]
[1646055266796,110.77787637,89.64,89.541,2.52976121]
[1646055267000,4.23610867,89.639,89.541,111.82976121]
[1646055267198,4.23610867,89.639,89.54,13.37]
[1646055267398,3.17976147,89.642,89.54,15.85102705]
[1646055267800,5.92655068,89.642,89.54,15.85102705]
[1646055267999,1.63856843,89.64,89.54,15.85102705]
[1646055268201,110.93856843,89.64,89.54,15.85102705]
[1646055268400,110.9059597,89.638,89.54,15.85102705]
[1646055268600,1.6957288,89.637,89.54,15.85102705]
[1646055268801,111.02114723,89.636,89.54,15.85102705]
[1646055269001,1.86981076,89.635,89.54,13.37]
[1646055269402,1.86981076,89.635,89.539,55.83759194]
[1646055269403,1.36529944,89.633,89.539,55.83759194]
[1646055269802,2.74678921,89.634,89.545,109.3]
[1646055270002,2.57890241,89.658,89.551,174.88]
[1646055270203,2.57890241,89.658,89.552,2.45023241]
[1646055270401,2.74678921,89.67,89.552,2.45023241]